bitfinex-derivatives/quotes_SOLF0:USTF0_20240910
["timestamp","ask_amount","ask_price","bid_price","bid_amount"]
[1725965463498,9.1,134.86,134.8,12.8089]
[1725965463805,3.7084,134.82,134.8,12.8089]
[1725965464101,3.7084,134.82,134.8,9.1]
[1725965464295,9.1,134.85,134.8,9.1]
[1725965464795,3.7085,134.82,134.8,9.1]
[1725965471007,3.7087,134.81,134.78,14.1512]
[1725965474500,3.7087,134.81,134.79,3.7092]
[1725965474903,3.7085,134.82,134.8,9.1]
[1725965476105,3.7085,134.82,134.8,12.8088]
[1725965476705,3.7085,134.82,134.8,3.7088]
[1725965477306,3.7087,134.81,134.79,12.8091]
[1725965478006,10.4689,134.84,134.78,3.7094]
[1725965478208,9.1,134.83,134.76,10.4036]
[1725965478401,9.1,134.82,134.76,10.4036]
[1725965478798,9.1,134.82,134.77,3.7096]
[1725965480405,3.7093,134.79,134.77,3.7096]
[1725965483411,3.7096,134.78,134.72,1.3333]
[1725965483705,5.12205952,134.83,134.74,9.1]
[1725965483706,9.1,134.79,134.74,9.1]
[1725965483901,3.7102,134.76,134.74,3.7104]
[1725965484105,9.1,134.78,134.72,1.3333]
[1725965484306,1.3335,134.79,134.73,6.21462493]
[1725965484611,1.3335,134.79,134.68,12.76409381]
[1725965484612,9.1,134.74,134.68,12.76409381]
[1725965484805,9.1,134.74,134.69,6.2159093]
[1725965485006,3.7111,134.73,134.7,3.7116]
[1725965486511,3.7112,134.72,134.7,3.7116]
[1725965489012,3.711,134.73,134.7,12.8116]
[1725965491312,2.7237,134.78,134.7,12.8116]
[1725965491516,9.1,134.75,134.7,12.8116]
[1725965492918,3.7112,134.72,134.7,12.8116]
[1725965493118,3.7112,134.72,134.69,3.7119]
[1725965494009,3.7115,134.71,134.68,12.8121]
[1725965495412,3.7115,134.71,134.69,3.7119]
[1725965495613,3.7113,134.72,134.69,9.1]
[1725965496505,3.711,134.73,134.7,3.7116]
[1725965500620,3.711,134.73,134.71,3.7114]
[1725965504024,3.7105,134.75,134.7,9.1]
[1725965504525,3.7105,134.75,134.73,3.7107]
[1725965507224,3.7105,134.75,134.72,3.711]
[1725965507525,3.7105,134.75,134.73,3.7108]
[1725965509225,3.7105,134.75,134.72,3.7111]
[1725965510127,3.7106,134.74,134.72,3.7111]
[1725965510528,3.7106,134.74,134.71,3.7113]
[1725965510721,3.711,134.73,134.71,3.7113]
[1725965511126,3.711,134.73,134.69,9.1]
[1725965512724,3.711,134.73,134.7,3.7117]
[1725965513327,3.7112,134.72,134.7,3.7117]
[1725965518933,9.1,134.76,134.71,3.7114]
[1725965519135,9.1,134.76,134.7,9.1]
[1725965519635,3.7107,134.74,134.72,3.7111]
[1725965519933,9.1,134.76,134.67,6.36813497]
[1725965520137,3.711,134.73,134.7,3.7116]
[1725965521427,3.711,134.73,134.71,3.7114]
[1725965521834,3.7107,134.74,134.7,9.1]
[1725965522239,3.711,134.73,134.71,3.7114]
[1725965523143,9.1,134.77,134.72,9.1]
[1725965523343,2.6455,134.78,134.72,9.1]
[1725965523543,11.7455,134.78,134.73,9.1]
[1725965523839,11.7455,134.78,134.73,12.8107]
[1725965524029,11.7455,134.78,134.73,9.1]
[1725965524438,3.7105,134.75,134.72,12.811]
[1725965527041,9.1,134.75,134.7,3.7116]
[1725965527639,3.7111,134.73,134.71,3.7114]
[1725965528443,3.7108,134.74,134.71,3.7114]
[1725965528642,9.1,134.77,134.72,3.7109]
[1725965528942,3.7106,134.75,134.72,3.7109]
[1725965529841,3.7107,134.74,134.72,3.7109]
[1725965530040,9.1,134.77,134.7,9.1]
[1725965530348,3.9814,134.78,134.7,9.1]
[1725965530349,3.711,134.73,134.7,9.1]
[1725965531139,3.711,134.73,134.7,12.8116]
[1725965531347,3.9814,134.78,134.69,9.1]
[1725965531348,3.7113,134.72,134.69,9.1]
[1725965532153,3.7113,134.72,134.69,12.8118]
[1725965532355,9.1,134.73,134.67,2.6806]
[1725965532553,10.4893,134.73,134.67,11.7806]
[1725965532852,3.7117,134.71,134.68,3.7121]
[1725965533156,3.7117,134.71,134.67,11.7806]
[1725965533656,3.7113,134.72,134.67,11.7806]
[1725965533859,1.3893,134.73,134.69,9.1]
[1725965534150,1.3893,134.73,134.7,3.7116]
[1725965535148,5.1004,134.73,134.7,3.7116]
[1725965537552,3.7112,134.72,134.7,3.7116]
[1725965538258,1.3893,134.73,134.7,3.7117]
[1725965538259,5.1003,134.73,134.7,3.7117]
[1725965538456,5.1003,134.73,134.69,9.1]
[1725965539257,5.1003,134.73,134.7,3.7117]
[1725965540758,3.7113,134.72,134.7,3.7117]
[1725965545055,3.7114,134.71,134.69,3.7119]
[1725965546352,10.4893,134.73,134.68,3.7121]
[1725965547156,3.7116,134.71,134.68,3.7121]
[1725965547458,10.4893,134.73,134.68,3.7121]
[1725965547459,9.1,134.72,134.68,3.7121]
[1725965547657,3.7119,134.7,134.68,3.7121]
[1725965548758,3.7119,134.7,134.62,1.3401]
[1725965548759,3.7121,134.69,134.62,10.62337422]
[1725965548959,3.7121,134.69,134.66,9.1]
[1725965549160,3.7121,134.69,134.67,6.21660785]
[1725965549356,3.7121,134.69,134.66,12.8127]
[1725965549556,3.7121,134.69,134.67,6.21691972]
[1725965549758,3.7121,134.69,134.66,9.1]
[1725965549961,3.7121,134.69,134.67,9.92932051]
[1725965550154,3.7121,134.69,134.67,3.7124]
[1725965550464,3.7121,134.69,134.68,6.21692051]
[1725965550660,1.3893,134.73,134.68,6.21692051]
[1725965550966,1.3893,134.73,134.7,9.1]
[1725965551358,3.7113,134.72,134.7,9.1]
[1725965551956,3.7113,134.72,134.69,3.7118]
[1725965552361,3.7113,134.72,134.7,6.21656792]
[1725965552566,3.7113,134.72,134.69,3.7118]
[1725965552758,3.7113,134.72,134.7,6.21653745]
[1725965552959,3.7113,134.72,134.69,3.7118]
[1725965553158,3.7113,134.72,134.7,6.21653745]
[1725965553360,3.7113,134.72,134.69,3.7118]
[1725965553565,3.7113,134.72,134.7,6.21653745]
[1725965553765,3.7113,134.72,134.69,3.7118]
[1725965553954,3.7113,134.72,134.7,6.21653745]
[1725965554155,3.7113,134.72,134.69,3.7118]
[1725965554360,3.7113,134.72,134.7,6.21656941]
[1725965554561,3.7115,134.71,134.69,3.7118]
[1725965554763,3.7115,134.71,134.7,6.21662876]
[1725965555160,3.7113,134.72,134.7,6.21662876]
[1725965555356,3.7113,134.72,134.69,3.7118]
[1725965555566,1.3893,134.73,134.7,6.21657241]
[1725965555754,1.3893,134.73,134.69,3.7118]
[1725965555955,1.3893,134.73,134.7,6.21657241]
[1725965556160,1.3893,134.73,134.69,3.7118]
[1725965556370,1.3893,134.73,134.7,6.21662441]
[1725965556667,1.3893,134.73,134.69,3.7118]
[1725965556965,3.7112,134.72,134.69,3.7118]
[1725965558255,3.7112,134.72,134.7,3.7117]
[1725965558663,3.7112,134.72,134.7,9.92829244]
[1725965559268,3.7112,134.72,134.7,6.21659244]
[1725965559570,3.7112,134.72,134.69,12.8119]
[1725965559771,3.7112,134.72,134.7,6.21653179]
[1725965559957,3.7112,134.72,134.69,12.8119]
[1725965560162,3.7112,134.72,134.7,6.21653251]
[1725965560467,3.7112,134.72,134.69,12.8119]
[1725965560668,3.7112,134.72,134.7,6.21657084]
[1725965560969,3.7112,134.72,134.69,12.8119]
[1725965561167,3.7112,134.72,134.7,6.21657084]
[1725965561369,3.7115,134.71,134.69,3.7119]
[1725965561866,10.4893,134.73,134.68,3.7122]
[1725965562066,10.4893,134.73,134.69,6.21670818]
[1725965562264,10.4893,134.73,134.68,3.7122]
[1725965562463,10.4893,134.73,134.69,6.1404987]
[1725965562664,10.4893,134.73,134.68,3.7122]
[1725965562872,10.4893,134.73,134.69,6.14045154]
[1725965563071,3.7117,134.7,134.68,3.7122]
[1725965563277,3.7117,134.7,134.69,6.14045075]
[1725965564570,1.3893,134.73,134.69,9.85225075]
[1725965564871,1.3893,134.73,134.69,3.7118]
[1725965565676,3.7112,134.72,134.69,3.7118]
[1725965568280,3.7112,134.72,134.7,3.7117]
[1725965581287,5.1003,134.73,134.7,3.7117]
[1725965581489,1.3893,134.73,134.69,3.7118]
[1725965581685,3.7118,134.7,134.66,1.3077]
[1725965581991,3.7118,134.7,134.68,3.7122]
[1725965591601,3.7118,134.7,134.67,3.7124]
[1725965592593,3.7118,134.7,134.68,3.7123]
[1725965596303,3.7118,134.7,134.67,12.8124]
[1725965598108,3.7118,134.7,134.68,3.7122]
[1725965598305,3.7115,134.71,134.67,9.1]
[1725965599200,3.7115,134.71,134.69,3.7119]
[1725965610411,3.7115,134.71,134.69,1.7119]
[1725965623517,3.7115,134.71,134.68,3.7121]
[1725965624614,2.6479,134.78,134.69,9.1]
[1725965624812,9.1,134.76,134.69,12.87933088]
[1725965625317,3.7108,134.74,134.71,3.7113]
[1725965627623,3.7109,134.73,134.71,3.7113]
[1725965627922,3.7109,134.73,134.7,3.7116]
[1725965629714,3.7109,134.73,134.71,3.7114]
[1725965630318,3.7109,134.73,134.7,3.7116]
[1725965630519,3.711,134.73,134.7,3.7116]
[1725965631728,3.711,134.73,134.71,3.7114]
[1725965635222,3.711,134.73,134.69,12.79114807]
[1725965635223,9.1,134.74,134.67,2.6251]
[1725965635516,9.1,134.74,134.68,15.24039167]
[1725965635725,3.7114,134.72,134.69,9.85229167]
[1725965635925,3.7114,134.72,134.69,3.7119]
[1725965638030,3.7114,134.72,134.7,3.7116]
[1725965640132,3.711,134.73,134.7,9.1]
[1725965640929,3.7112,134.72,134.7,9.1]
[1725965641633,3.7112,134.72,134.7,12.8116]
[1725965642333,3.7112,134.72,134.7,3.7116]
[1725965642834,3.7115,134.71,134.69,3.7119]
[1725965643430,3.7115,134.71,134.68,12.8121]
[1725965644132,3.7115,134.71,134.68,3.7121]
[1725965645133,3.7118,134.7,134.68,3.7121]
[1725965645437,9.1,134.71,134.65,9.1]
[1725965645829,3.7122,134.69,134.66,9.85353997]
[1725965646038,3.7122,134.69,134.67,6.14093997]
[1725965646228,3.7122,134.69,134.66,3.7126]
[1725965646431,3.7122,134.69,134.67,9.85344633]
[1725965646632,3.7122,134.69,134.67,3.7125]
[1725965652139,3.7119,134.7,134.67,12.8125]
[1725965652328,3.7119,134.7,134.67,9.1]
[1725965653132,3.7119,134.7,134.68,3.7123]
[1725965653430,1.3839,134.72,134.68,9.1]
[1725965653643,2.6479,134.78,134.7,9.1]
[1725965653828,2.6479,134.78,134.63,2.6728]
[1725965653829,1.399,134.77,134.71,9.1]
[1725965654029,1.399,134.77,134.73,9.1]
[1725965654637,5.109,134.77,134.74,3.7105]
[1725965656431,5.109,134.77,134.73,12.8107]
[1725965656638,5.109,134.77,134.73,9.1]
[1725965656639,1.399,134.77,134.73,9.1]
[1725965657039,3.7102,134.76,134.73,9.1]
[1725965658141,3.7104,134.75,134.72,12.811]
[1725965659237,3.7102,134.76,134.72,12.811]
[1725965660038,3.7102,134.76,134.73,3.7109]
[1725965661745,3.7103,134.75,134.73,3.7109]
[1725965662048,3.7103,134.75,134.72,12.8111]
[1725965664254,3.7103,134.75,134.73,3.7109]
[1725965665048,3.7102,134.76,134.73,3.7109]
[1725965665843,3.7101,134.76,134.73,3.7109]
[1725965666149,1.399,134.77,134.73,3.7109]
[1725965667053,9.1,134.74,134.7,1.2723]
[1725965667255,9.1,134.74,134.68,9.1]
[1725965667652,3.7112,134.72,134.68,9.1]
[1725965667952,9.1,134.74,134.66,1.28]
[1725965668254,3.7115,134.71,134.67,9.1]
[1725965668444,9.1,134.73,134.67,9.1]
[1725965668643,3.7113,134.72,134.67,9.1]
[1725965668844,9.1,134.74,134.68,9.1]
[1725965669047,3.711,134.73,134.7,3.7115]
[1725965670754,3.7107,134.74,134.71,3.7114]
[1725965672261,3.7107,134.74,134.71,12.8114]
[1725965675059,3.7104,134.75,134.72,3.7111]
[1725965675359,3.7104,134.75,134.72,9.1]
[1725965675660,2.7061,134.77,134.73,3.7107]
[1725965675963,2.7061,134.77,134.72,9.1]
[1725965676163,3.7106,134.75,134.72,12.8111]
[1725965678963,3.7107,134.74,134.72,3.7111]
[1725965679962,2.7061,134.77,134.71,9.1]
[1725965679963,3.7104,134.75,134.73,3.7109]
[1725965680364,11.8061,134.77,134.71,9.1]
[1725965681160,3.7107,134.74,134.72,3.711]
[1725965681760,3.7107,134.74,134.71,12.8113]
[1725965681957,9.1,134.76,134.71,12.8113]
[1725965681958,3.7109,134.73,134.71,12.8113]
[1725965682963,11.8061,134.77,134.72,3.7111]
[1725965683467,3.7105,134.75,134.72,3.7111]
[1725965685369,2.7061,134.77,134.73,3.7108]
[1725965685762,3.7105,134.75,134.72,9.1]
[1725965686167,3.7105,134.75,134.72,12.811]
[1725965686473,3.7105,134.75,134.72,3.711]
[1725965686666,3.7105,134.75,134.72,12.811]
[1725965694177,3.7105,134.75,134.73,3.7108]
[1725965694377,3.7103,134.76,134.73,9.1]
[1725965695279,3.7103,134.76,134.74,3.7106]
[1725965700272,3.7103,134.75,134.73,12.8107]
[1725965700471,10.499,134.77,134.71,9.1]
[1725965701475,3.7107,134.74,134.72,3.7112]
[1725965704681,9.1,134.73,134.55,52.15042868]
[1725965704879,9.1,134.71,134.63,25.07703557]
[1725965705081,3.7122,134.69,134.65,9.1]
[1725965705273,10.3898,134.72,134.67,9.1]
[1725965705679,3.7117,134.7,134.67,12.8124]
[1725965705979,3.7117,134.7,134.67,9.1]
[1725965707784,3.7117,134.7,134.67,12.8124]
[1725965709782,9.1,134.71,134.66,3.7127]
[1725965710183,3.7124,134.68,134.65,3.713]
[1725965710573,3.7124,134.68,134.65,12.813]
[1725965711083,3.7124,134.68,134.66,3.7128]
[1725965711679,3.7124,134.68,134.65,12.813]
[1725965713588,2.6917,134.72,134.67,9.1]
[1725965714089,3.7119,134.7,134.67,12.8124]
[1725965714486,3.7119,134.7,134.67,3.7124]
[1725965714980,11.7917,134.72,134.67,3.7124]
[1725965714981,3.712,134.69,134.67,3.7124]
[1725965720292,9.1,134.7,134.65,9.1]
[1725965721394,3.7124,134.68,134.65,12.8129]
[1725965722197,3.7124,134.68,134.65,3.7129]
[1725965722395,3.7127,134.67,134.64,12.8132]
[1725965722600,9.1,134.69,134.64,3.7132]
[1725965723694,3.7127,134.67,134.64,3.7132]
[1725965723896,3.7127,134.67,134.65,3.7131]
[1725965724896,3.712,134.7,134.66,9.1]
[1725965725197,2.6917,134.72,134.66,9.1]
[1725965725399,3.7119,134.7,134.67,3.7124]
[1725965726399,3.712,134.69,134.67,3.7124]
[1725965730009,3.712,134.69,134.66,12.8127]
[1725965731905,3.712,134.69,134.67,3.7125]
[1725965732505,3.7119,134.7,134.67,3.7125]
[1725965733212,3.712,134.69,134.67,3.7125]
[1725965736916,11.7917,134.72,134.67,9.1]
[1725965736917,1.2898,134.72,134.67,9.1]
[1725965737822,3.7115,134.71,134.68,3.7121]
[1725965742130,9.1,134.74,134.69,9.1]
[1725965743021,3.7111,134.73,134.7,3.7115]
[1725965743221,9.1,134.74,134.7,3.7115]
[1725965743421,3.711,134.73,134.7,3.7115]
[1725965744928,3.7108,134.74,134.71,3.7114]
[1725965745324,3.7108,134.74,134.71,12.8114]
[1725965755325,9.1,134.75,134.7,3.7115]
[1725965755526,9.1,134.74,134.69,9.1]
[1725965755827,3.7113,134.72,134.69,12.8119]
[1725965756925,3.7113,134.72,134.7,3.7117]
[1725965757131,3.711,134.73,134.7,3.7117]
[1725965757929,3.711,134.73,134.71,3.7114]
[1725965761631,3.7107,134.74,134.71,3.7114]
[1725965763842,3.7107,134.74,134.72,12.8111]
[1725965764032,6.41442794,134.8,134.73,9.1]
[1725965764235,1.12301435,134.79,134.73,9.1]
[1725965764445,3.7099,134.77,134.73,12.8107]
[1725965764642,3.7099,134.77,134.74,9.1]
[1725965764837,3.7099,134.77,134.73,3.7107]
[1725965765035,16.86732794,134.8,134.74,9.1]
[1725965765237,1.12301253,134.79,134.74,9.1]
[1725965765845,9.1,134.78,134.72,9.1]
[1725965766142,9.1,134.77,134.72,9.1]
[1725965766447,9.1,134.77,134.72,12.811]
[1725965766448,3.7105,134.75,134.72,12.811]
[1725965766642,7.76732794,134.8,134.7,1.3246]
[1725965766643,9.1,134.76,134.7,1.3246]
[1725965766938,1.3481,134.75,134.7,1.3246]
[1725965767131,3.7108,134.74,134.7,5.0361]
[1725965767332,3.7108,134.74,134.71,9.1]
[1725965768241,3.7108,134.74,134.71,12.8113]
[1725965768441,5.0585,134.75,134.72,9.1]
[1725965768741,5.0585,134.75,134.72,12.811]
[1725965774839,3.7109,134.73,134.69,3.7781243]
[1725965775039,9.1,134.74,134.65,17.60367261]
[1725965775235,9.1,134.74,134.68,9.1]
[1725965775742,3.7116,134.71,134.68,12.8121]
[1725965776345,3.7116,134.71,134.68,9.1]
[1725965777146,3.7116,134.71,134.69,3.7119]
[1725965778149,9.1,134.73,134.67,9.1]
[1725965778539,3.7119,134.7,134.67,12.8123]
[1725965780051,3.712,134.69,134.67,12.8123]
[1725965781755,3.7119,134.7,134.67,12.8123]
[1725965781960,9.1,134.73,134.68,9.1]
[1725965782649,1.3368,134.74,134.7,9.1]
[1725965783853,10.4368,134.74,134.69,3.7119]
[1725965784047,10.4368,134.74,134.68,12.8122]
[1725965784954,3.7116,134.71,134.68,12.8122]
[1725965787553,3.7116,134.71,134.64,1.2879]
[1725965787554,9.1,134.7,134.64,1.2879]
[1725965787756,9.1,134.7,134.64,10.3879]
[1725965787757,10.4334,134.7,134.64,10.3879]
[1725965788057,3.7129,134.66,134.64,10.3879]
[1725965789348,3.7129,134.66,134.64,1.2879]
[1725965790052,3.7131,134.65,134.64,1.2879]
[1725965790556,3.7131,134.65,134.63,9.1]
[1725965791161,3.7131,134.65,134.63,12.8136]
[1725965793559,9.1,134.67,134.58,11.25164791]
[1725965793763,9.1,134.67,134.6,9.1]
[1725965794350,9.1,134.67,134.61,3.714]
[1725965795059,3.7136,134.64,134.61,3.714]
[1725965795560,3.7137,134.63,134.6,12.8144]
[1725965795954,3.7137,134.63,134.6,9.1]
[1725965796859,3.7135,134.64,134.61,3.7142]
[1725965797762,3.7135,134.64,134.61,12.8142]
[1725965803065,9.1,134.65,134.61,3.7142]
[1725965803371,9.1,134.64,134.58,10.3773]
[1725965803673,3.714,134.62,134.59,3.7145]
[1725965804764,3.714,134.62,134.6,3.7145]
[1725965807664,3.714,134.62,134.59,3.7146]
[1725965807866,3.714,134.62,134.59,12.8146]
[1725965808468,3.714,134.62,134.6,3.7145]
[1725965812869,3.7138,134.63,134.59,9.1]
[1725965813070,3.7138,134.63,134.6,9.1]
[1725965813873,3.7138,134.63,134.61,3.7141]
[1725965815477,3.7135,134.64,134.61,12.8141]
[1725965816178,3.7135,134.64,134.61,3.7141]
[1725965818273,3.7132,134.65,134.62,3.7138]
[1725965818575,9.1,134.67,134.62,12.8138]
[1725965818775,3.7132,134.65,134.62,12.8138]
[1725965820383,3.7132,134.65,134.63,3.7136]
[1725965822281,3.7132,134.65,134.62,12.8138]
[1725965825184,3.7135,134.64,134.62,3.7138]
[1725965825687,3.7132,134.65,134.62,3.7138]
[1725965828294,3.7132,134.65,134.63,3.7136]
[1725965828487,3.7129,134.66,134.63,9.1]
[1725965829792,3.7129,134.66,134.64,3.7133]
[1725965830385,3.7128,134.67,134.64,3.7133]
[1725965830689,9.1,134.68,134.64,3.7133]
[1725965832192,3.7128,134.66,134.64,3.7133]
[1725965832589,3.7124,134.68,134.63,9.1]
[1725965832788,1.3334,134.7,134.64,9.1]
[1725965832789,10.4334,134.7,134.64,9.1]
[1725965833188,3.7124,134.68,134.65,3.7129]
[1725965835094,3.7126,134.67,134.65,3.7129]
[1725965835600,10.4334,134.7,134.65,3.7129]
[1725965835794,3.7125,134.68,134.65,3.7129]
[1725965837891,3.7122,134.69,134.66,3.7128]
[1725965838795,3.7123,134.68,134.65,3.7129]
[1725965838997,1.3334,134.7,134.65,9.1]
[1725965839196,1.3334,134.7,134.66,9.1]
[1725965839594,1.3334,134.7,134.67,3.7125]
[1725965839793,5.0453,134.7,134.67,3.7125]
[1725965845905,3.712,134.69,134.67,3.7125]
[1725965847207,3.712,134.69,134.66,9.1]
[1725965847208,3.712,134.69,134.66,12.8127]
[1725965848906,3.712,134.69,134.66,3.7127]
[1725965850706,5.0453,134.7,134.67,3.7125]
[1725965852906,3.7121,134.69,134.67,3.7125]
[1725965853107,3.7121,134.69,134.66,12.8127]
[1725965853300,10.4334,134.7,134.63,2.6965]
[1725965853501,10.4334,134.7,134.64,9.1]
[1725965854207,3.7124,134.68,134.65,3.7129]
[1725965856513,3.7124,134.68,134.64,3.7132]
[1725965856514,3.7123,134.68,134.64,3.7132]
[1725965856710,3.7123,134.68,134.65,9.1]
[1725965857305,3.7123,134.68,134.65,12.813]
[1725965858409,3.7123,134.68,134.66,3.7128]
[1725965858608,1.3334,134.7,134.65,9.1]
[1725965859004,1.3334,134.7,134.66,3.7127]
[1725965859213,3.7121,134.69,134.66,3.7127]
[1725965860212,3.7123,134.68,134.66,3.7127]
[1725965861507,10.4334,134.7,134.64,3.7132]
[1725965861701,10.4334,134.7,134.64,12.8132]
[1725965862109,3.7127,134.67,134.64,12.8132]
[1725965865517,3.7127,134.67,134.65,3.7131]
[1725965867818,3.7124,134.68,134.64,9.1]
[1725965868425,3.7122,134.69,134.66,12.8128]
[1725965868924,3.7122,134.69,134.66,9.1]
[1725965869322,5.0452,134.7,134.67,12.8124]
[1725965870219,3.7118,134.7,134.67,12.8124]
[1725965870624,1.3356,134.73,134.68,3.712]
[1725965870925,10.4356,134.73,134.68,12.812]
[1725965871321,3.7116,134.71,134.68,12.812]
[1725965872125,3.7118,134.7,134.68,9.1]
[1725965872325,9.1,134.73,134.69,3.79009926]
[1725965873914,1.4133,134.74,134.7,9.1]
[1725965874120,1.4133,134.74,134.7,12.72894485]
[1725965874530,3.7112,134.72,134.7,3.62894485]
[1725965874721,1.4133,134.74,134.69,9.1]
[1725965874921,3.711,134.73,134.7,3.7116]
[1725965875225,3.711,134.73,134.71,3.7670772]
[1725965875421,3.7109,134.73,134.71,7.4784772]
[1725965875626,3.7109,134.73,134.71,3.7670772]
[1725965875925,3.7109,134.73,134.71,9.1]
[1725965876229,3.7107,134.74,134.71,12.73990791]
[1725965876420,3.7107,134.74,134.71,16.45130791]
[1725965877128,9.1,134.76,134.71,12.73990791]
[1725965878224,3.7108,134.74,134.71,16.45130791]
[1725965881830,9.1,134.76,134.65,6.2263209]
[1725965881831,3.7111,134.73,134.7,3.7116]
[1725965882030,3.7111,134.73,134.71,9.1]
[1725965882333,3.7106,134.74,134.72,9.1]
[1725965883235,3.7106,134.74,134.71,3.7113]
[1725965883427,3.7106,134.74,134.72,9.1]
[1725965890532,3.7109,134.73,134.72,9.1]
[1725965890733,10.4125,134.77,134.72,9.1]
[1725965892228,3.7108,134.74,134.72,9.1]
[1725965893325,1.3125,134.77,134.73,9.1]
[1725965893530,1.3125,134.77,134.76,9.1]
[1725965894038,5.0224,134.77,134.76,9.1]
[1725965894840,3.7099,134.77,134.76,9.1]
[1725965895135,125.83543589,134.81,134.76,9.1]
[1725965895136,3.7096,134.78,134.76,9.1]
[1725965896344,7.4144,134.87,134.77,9.1]
[1725965896541,2.50901739,134.84,134.8,9.1]
[1725965896739,3.7087,134.82,134.8,9.1]
[1725965897340,1.3862,134.84,134.81,9.1]
[1725965897939,1.3862,134.84,134.83,9.1]
[1725965897940,5.0942,134.84,134.83,9.1]
[1725965898641,1.3918,134.89,134.83,9.1]
[1725965898830,2.778,134.89,134.85,9.1]
[1725965899436,11.878,134.89,134.84,9.1]
[1725965899636,3.7075,134.86,134.84,9.1]
[1725965900136,11.878,134.89,134.84,9.1]
[1725965900645,2.778,134.89,134.84,9.1]
[1725965900845,1.3862,134.89,134.84,9.1]
[1725965901039,3.7072,134.87,134.84,9.1]
[1725965901235,1.3862,134.89,134.85,9.1]
[1725965901551,1.3862,134.89,134.85,12.7720083]
[1725965901739,3.707,134.88,134.85,9.1]
[1725965902042,3.707,134.88,134.86,9.1]
[1725965903144,1.3862,134.89,134.87,9.1]
[1725965903339,2.6705,134.93,134.88,9.1]
[1725965903534,1.3959,134.93,134.88,9.1]
[1725965905044,3.7061,134.91,134.88,9.1]
[1725965908148,3.7061,134.91,134.9,9.1]
[1725965916552,3.7058,134.92,134.9,9.1]
[1725965916756,3.7058,134.92,134.91,9.1]
[1725965917156,3.7055,134.93,134.91,9.1]
[1725965919654,3.7052,134.94,134.92,9.1]
[1725965919860,3.7052,134.94,134.93,9.1]
[1725965920159,1.3043,134.95,134.93,9.1]
[1725965920160,3.705,134.95,134.93,9.1]
[1725965921454,3.7047,134.96,134.93,9.1]
[1725965921855,3.7047,134.96,134.94,9.1]
[1725965923753,1.3747,134.98,134.94,9.1]
[1725965923954,1.3607,134.99,134.94,9.1]
[1725965924157,1.3607,134.99,134.96,9.1]
[1725965924158,3.7045,134.97,134.96,9.1]
[1725965925758,3.7046,134.96,134.93,5.0419]
[1725965925959,1.3607,134.99,134.95,9.1]
[1725965926155,1.3607,134.99,134.97,9.1]
[1725965927061,3.704,134.98,134.97,9.1]
[1725965930253,3.704,134.98,134.93,5.0419]
[1725965930565,1.3607,134.99,134.97,9.1]
[1725965931366,3.704,134.98,134.97,9.1]
[1725965936372,1.3607,134.99,134.96,9.1]
[1725965936566,1.3607,134.99,134.93,1.3366]
[1725965936567,1.3607,134.99,134.98,9.1]